fUST/lending_fUST_20251101
["ID","MTS","AMOUNT","RATE_DAILY","PERIOD"]
[392804540,1761973655699,153.800147,0.0003498,31]
[392804541,1761973666613,316.76145308,0.00038017,31]
[392804542,1761973680037,205.64,0.00018082,2]
[392804543,1761973680330,205.64,0.00018082,2]
[392804544,1761973683772,443.21832471,0.00035616,120]
[392804545,1761973688840,-210.99427287,0.0002979,2]
[392804546,1761973693698,-179.59464132,0.0002979,2]
[392804547,1761973693723,-208.29347922,0.0002989,2]
[392804548,1761973697047,-22.70652078,0.0002989,2]
[392804549,1761973704342,424.05,0.00033,30]
[392804550,1761973734817,999.0,0.00032989,120]
[392804551,1761973735030,838.10099703,0.00034359,120]
[392804552,1761973762129,-380.0,0.00031851,2]
[392804614,1761973832622,-973.57,0.0003248,2]
[392804616,1761973832634,-1211.82216515,0.0003248,2]
[392804618,1761973832643,-859.96488407,0.000329,2]
[392804620,1761973832652,-1600.0,0.00032972,3]
[392804622,1761973832660,-504.32276064,0.00032973,5]
[392804624,1761973832669,-400.0,0.00032977,3]
[392804626,1761973832678,-400.0,0.00032977,3]
[392804628,1761973832687,-400.0,0.00032978,3]
[392804630,1761973832696,-300.0,0.00032978,3]
[392804632,1761973832705,-154.74490824,0.00032978,7]
[392804633,1761973832714,-137.7465987,0.00032978,7]
[392804636,1761973832725,-362.2534013,0.00032978,7]
[392804638,1761973832734,-500.0,0.00032978,7]
[392804639,1761973832743,-500.0,0.00032978,2]
[392804641,1761973832752,-500.0,0.00032978,7]
[392804643,1761973832761,-500.0,0.00032978,7]
[392804645,1761973832770,-500.0,0.00032978,7]
[392804647,1761973832779,-500.0,0.00032978,2]
[392804649,1761973832790,-500.0,0.00032978,7]
[392804651,1761973832799,-500.0,0.00032978,7]
[392804653,1761973832808,-500.0,0.00032978,7]
[392804655,1761973832817,-500.0,0.00032978,2]
[392804657,1761973832826,-500.0,0.00032978,7]
[392804659,1761973832835,-500.0,0.00032978,7]
[392804661,1761973832845,-500.0,0.00032978,7]
[392804663,1761973832854,-500.0,0.00032978,7]
[392804665,1761973832863,-500.0,0.00032978,2]
[392804667,1761973832872,-500.0,0.00032978,7]
[392804670,1761973832882,-270.33160994,0.00032978,7]
[392804682,1761973832976,-500.0,0.00032978,7]
[392804684,1761973832986,-188.06458204,0.00032978,2]
[392804686,1761973832995,-500.0,0.00032978,7]
[392804688,1761973833004,-500.0,0.00032978,7]
[392804690,1761973833013,-500.0,0.00032978,2]
[392804692,1761973833023,-500.0,0.00032978,7]
[392804694,1761973833031,-500.0,0.00032978,7]
[392804696,1761973833040,-500.0,0.00032978,7]
[392804698,1761973833049,-500.0,0.00032978,7]
[392804700,1761973833058,-500.0,0.00032978,2]
[392804702,1761973833066,-500.0,0.00032978,7]
[392804704,1761973833075,-500.0,0.00032978,7]
[392804706,1761973833085,-330.01620514,0.00032978,7]
[392804709,1761973833104,-169.98379486,0.00032978,7]
[392804710,1761973833113,-500.0,0.00032978,2]
[392804712,1761973833123,-608.44568288,0.00032978,7]
[392804714,1761973833132,-278.7622983,0.00032978,7]
[392804717,1761973833143,-221.2377017,0.00032978,7]
[392804719,1761973833152,-336.0222983,0.00032978,7]
[392804721,1761973833167,-163.9777017,0.00032978,7]
[392804723,1761973833175,-500.0,0.00032978,7]
[392804725,1761973833184,-500.0,0.00032978,7]
[392804726,1761973833193,-500.0,0.00032978,7]
[392804728,1761973833202,-500.0,0.00032978,7]
[392804731,1761973833211,-500.0,0.00032978,7]
[392804732,1761973833221,-500.0,0.00032978,7]
[392804734,1761973833230,-500.0,0.00032978,7]
[392804736,1761973833239,-500.0,0.00032978,7]
[392804738,1761973833248,-500.0,0.00032978,7]
[392804740,1761973833257,-93.19412061,0.00032978,7]
[392804811,1761973838541,-406.80587939,0.00032978,7]
[392804812,1761973838551,-457.016752,0.00032978,7]
[392804813,1761973838560,-500.0,0.00032978,7]
[392804814,1761973838575,-500.0,0.00032978,7]
[392804815,1761973838584,-500.0,0.00032978,7]
[392804816,1761973838594,-500.0,0.00032978,7]
[392804817,1761973838604,-500.0,0.00032978,7]
[392804818,1761973838614,-500.0,0.00032978,7]
[392804819,1761973838624,-500.0,0.00032978,7]
[392804821,1761973838633,-500.0,0.00032978,7]
[392804822,1761973838642,-500.0,0.00032978,7]
[392804824,1761973838652,-500.0,0.00032978,7]
[392804826,1761973838661,-500.0,0.00032978,7]
[392804828,1761973838671,-500.0,0.00032978,7]
[392804830,1761973838680,-500.0,0.00032978,7]
[392804831,1761973838689,-500.0,0.00032978,7]
[392804833,1761973838699,-469.74321395,0.00032979,7]
[392804835,1761973838708,-500.0,0.00032979,7]
[392804837,1761973838717,-372.61216785,0.00032979,7]
[392804838,1761973838727,-9017.5017872,0.00032979,2]
[392804841,1761973838738,-13917.9638035,0.00032979,2]
[392804842,1761973839298,371.32,0.00033,30]
[392805033,1761973843657,-874.47,0.0003297,10]
[392805035,1761973843668,-1263.549511,0.00032979,2]
[392805038,1761973843681,-4155.27195149,0.00032979,2]
[392805047,1761973843767,-21645.71294681,0.00032979,2]
[392805049,1761973843779,-17835.68031808,0.0003298,2]
[392805054,1761973843825,-66.6307174,0.0003298,2]
[392805148,1761973846743,-16128.65349425,0.0003298,2]
[392805149,1761973846850,-7501.40466771,0.0003298,2]
[392805150,1761973846864,-1448.3096139,0.0003298,2]
[392805151,1761973846964,-2085.26905335,0.0003298,2]
[392805152,1761973846977,-1533.78185648,0.0003298,2]
[392805153,1761973971347,-413.76338292,0.0003248,2]
[392805154,1761973971375,-666.5244534,0.0003288,2]
[392805155,1761973971404,-1600.0,0.00032969,3]
[392805156,1761973971432,-517.34,0.0003297,10]
[392805157,1761973971461,-503.39292518,0.00032973,5]
[392805158,1761973971491,-400.0,0.00032978,2]
[392805159,1761973971677,-1294.57555182,0.00032979,2]
[392805160,1761973975978,334.19,0.00033,30]
[392805161,1761973977258,-505.8180506,0.00031868,2]
[392805162,1761973977292,-8988.3738988,0.00032979,2]
[392805164,1761974111999,300.77,0.000344,30]
[392805165,1761974146273,512.96,0.00035616,30]
[392805166,1761974168160,150.0,0.0002589,2]
[392805167,1761974168560,81.01970044,0.0002789,2]
[392805168,1761974170519,258.0,0.0003389,120]
[392805169,1761974170755,-95.98029956,0.0002789,2]
[392805170,1761974211803,499.0,0.00026,2]
[392805171,1761974247547,270.7,0.00033,30]
[392805172,1761974247923,270.7,0.000356,30]
[392805173,1761974255388,5000.0,0.00026,2]
[392805174,1761974258471,489.78084,0.00035,120]
[392805175,1761974277111,4260.53643024,0.00026,2]
[392805176,1761974299234,240.47356976,0.00026,2]
[392805177,1761974299255,1093.59482631,0.00026,2]
[392805178,1761974312883,-204.0,0.0002989,2]
[392805179,1761974312910,-1820.078548,0.00030492,2]
[392805180,1761974312937,-2015.3416259,0.00030595,2]
[392805181,1761974313186,-1921.1696522,0.00030595,2]
[392805182,1761974313222,-400.0,0.00030652,2]
[392805183,1761974313251,-1284.0,0.00030653,2]
[392805184,1761974313280,-720.0916376,0.00030654,2]
[392805185,1761974313379,-1349.4874204,0.00030654,2]
[392805186,1761974313407,-2196.19867215,0.00030817,2]
[392805187,1761974313435,-712.43914275,0.0003114,2]
[392805188,1761974313522,-1483.7595294,0.0003114,2]
[392805189,1761974313550,-1600.0,0.00031159,3]
[392805190,1761974313577,-297.0,0.0003116,3]
[392805191,1761974313605,-400.0,0.0003116,3]
[392805192,1761974313632,-244.0,0.0003116,3]
[392805193,1761974313940,-5661.1035969,0.0003116,2]
[392805194,1761974313961,-10000.01,0.0003116,2]
[392805195,1761974313990,-1707.41367788,0.0003116,2]
[392805196,1761974314018,-2625.626462,0.00031161,2]
[392805197,1761974314058,-2196.19867215,0.0003129,2]
[392805198,1761974314067,-2196.19867215,0.00031549,2]
[392805199,1761974314076,-1274.57251582,0.00031798,2]
[392805200,1761974314109,-921.62615633,0.00031798,2]
[392805201,1761974314147,-231.0,0.0003189,2]
[392805202,1761974314179,-2196.19867215,0.00032246,2]
[392805203,1761974314213,-500.0,0.00032393,2]
[392805204,1761974314247,-500.0,0.00032393,2]
[392805205,1761974314283,-500.0,0.00032393,2]
[392805206,1761974314395,-500.0,0.00032393,2]
[392805207,1761974314405,-333.92972024,0.00032393,2]
[392805208,1761974314422,-166.07027976,0.00032393,2]
[392805209,1761974314437,-345.38285365,0.00032393,2]
[392805210,1761974314448,-410.17302292,0.00032393,2]
[392805211,1761974314486,-89.82697708,0.00032393,2]
[392805212,1761974314522,-500.0,0.00032393,2]
[392805213,1761974314557,-495.7016752,0.00032393,2]
[392805214,1761974314593,-206.28005578,0.00032393,2]
[392805215,1761974314629,-500.0,0.00032393,2]
[392805216,1761974314664,-627.03316099,0.00032393,2]
[392805217,1761974314695,-500.0,0.00032393,2]
[392805218,1761974314726,-1966.12758975,0.00032394,2]
[392805219,1761974314987,-230.0710824,0.00032394,2]
[392805220,1761974314997,-200.04712627,0.00032684,2]
[392805221,1761974315014,-206.28005578,0.00032684,2]
[392805222,1761974315034,-176.88171471,0.00032684,2]
[392805223,1761974315044,-323.11828529,0.00032745,2]
[392805224,1761974315059,-627.03316099,0.00032745,2]
[392805225,1761974315074,-500.0,0.00032745,2]
[392805226,1761974315094,-746.04722587,0.00032745,2]
[392805227,1761974315104,-687.97190724,0.0003289,2]
[392805228,1761974315114,-762.17953904,0.0003289,2]
[392805229,1761974315771,-10000.01,0.0003289,2]
[392805230,1761974315807,-3083.93358884,0.0003289,2]
[392805231,1761974315837,-398.6,0.00032915,10]
[392805232,1761974315865,-332.17,0.00032915,10]
[392805233,1761974315892,-328.82024976,0.00032924,7]
[392805234,1761974315920,-610.8285175,0.00032924,7]
[392805235,1761974315947,-209.03,0.00032925,10]
[392805236,1761974316060,-73.2452878,0.00032925,2]
[392805237,1761974316085,-10000.01,0.00032925,2]
[392805238,1761974316100,-10000.01,0.00032925,2]
[392805239,1761974318729,-10000.01,0.00032925,2]
[392805240,1761974318840,-10000.01,0.00032925,2]
[392805241,1761974318967,-10000.01,0.00032925,2]
[392805242,1761974319088,-10000.01,0.00032925,2]
[392805243,1761974319224,-10000.01,0.00032925,2]
[392805244,1761974319339,-10000.01,0.00032925,2]
[392805245,1761974319455,-10000.01,0.00032925,2]
[392805246,1761974327792,-276.81,0.00032915,10]
[392805247,1761974327828,-9446.39,0.00032925,2]
[392805248,1761974328298,291.73811115,0.00026,2]
[392805249,1761974328324,4708.26188885,0.00026,2]
[392805250,1761974330210,163.25338706,0.000332,117]
[392805251,1761974333767,-10000.01,0.00032925,2]
[392805252,1761974336869,785.22447909,0.00026,2]
[392805253,1761974345076,5000.0,0.00026,2]
[392805254,1761974367472,5000.0,0.00026,2]
[392805255,1761974383728,216.56,0.00033,30]
[392805256,1761974384040,216.56,0.000352,30]
[392805257,1761974389863,5000.0,0.00026,2]
[392805258,1761974403105,300.0,0.00026,2]
[392805259,1761974406186,-829.84523544,0.00026,2]
[392805260,1761974406542,-829.84523544,0.00026,2]
[392805261,1761974409538,174.45411831,0.000253,2]
[392805262,1761974412906,1747.97355865,0.00026,2]
[392805263,1761974412930,3252.02644135,0.00026,2]
[392805264,1761974423368,-395.69972237,0.00026,2]
[392805265,1761974425001,-186.54607078,0.00026,2]
[392805266,1761974428530,-186.54607078,0.00026,2]
[392805267,1761974431282,-352.50190823,0.00026,2]
[392805268,1761974435250,-176.33384356,0.00026,2]
[392805269,1761974435299,2613.17980098,0.00026,2]
[392805270,1761974447911,-162.524783,0.00026,2]
[392805271,1761974452865,-200.0,0.00026,2]
[392805272,1761974453593,-200.0,0.00026,2]
[392805273,1761974456643,-410.50931375,0.00026,2]
[392805274,1761974459149,-204.01119664,0.00026,2]
[392805275,1761974459389,-204.01119664,0.00026,2]
[392805276,1761974462557,-327.22781562,0.00026,2]
[392805277,1761974464117,-186.61554801,0.00026,2]
[392805278,1761974466363,-194.61004345,0.00026,2]
[392805279,1761974470418,-270.29006506,0.00026,2]
[392805280,1761974474615,-177.0,0.00026,2]
[392805281,1761974482878,150.0,0.00025603,2]
[392805282,1761974484498,-318.75158608,0.00026,2]
[392805283,1761974485245,258.0,0.00033603,120]
[392805284,1761974485719,285.0,0.00035603,120]
[392805285,1761974486667,-177.0,0.00026,2]
[392805286,1761974488917,-104.68109372,0.00026,2]
[392805287,1761974493177,177.0,0.00026,2]
[392805288,1761974519422,173.24,0.00033,30]
[392805289,1761974519744,173.24,0.000354,30]
[392805292,1761974655646,154.0,0.00033,30]
[392805293,1761974655977,154.0,0.000351,30]
[392805294,1761974671363,-158.60131973,0.00026685,21]
[392805295,1761974671392,-177.0,0.00027603,2]
[392805296,1761974671422,-204.0,0.00029603,2]
[392805297,1761974671454,-150.0,0.0002989,2]
[392805298,1761974671483,-1384.868904,0.00031092,2]
[392805299,1761974671522,-231.0,0.00031603,2]
[392805300,1761974671557,-1375.0,0.00032562,2]
[392805301,1761974671589,-150.0,0.00032608,2]
[392805302,1761974671619,-199.0,0.0003261,7]
[392805303,1761974671648,-500.0,0.0003261,4]
[392805304,1761974671677,-441.06955254,0.0003261,4]
[392805305,1761974671862,-58.93044746,0.0003261,4]
[392805306,1761974677215,-400.0,0.00032773,2]
[392805307,1761974677244,-887.1051614,0.00032774,2]
[392805308,1761974677273,-554.25530654,0.00032825,2]
[392805309,1761974677339,-6317.28906412,0.0003287,2]
[392805317,1761974781704,-2168.85475249,0.00031473,2]
[392805318,1761974781725,-2168.85475249,0.00031612,2]
[392805319,1761974781747,-2168.85475249,0.00031916,2]
[392805320,1761974781766,-2168.85475249,0.00032119,2]
[392805321,1761974781785,-2168.85475249,0.00032469,2]
[392805322,1761974781804,-500.0,0.0003261,4]
[392805323,1761974781822,-1565.45,0.0003261,4]
[392805324,1761974781841,-2168.85475249,0.00032693,2]
[392805325,1761974781862,-550.3775258,0.00032825,2]
[392805326,1761974781881,-550.37752579,0.00032841,2]
[392805327,1761974781901,-550.37752579,0.00032858,2]
[392805328,1761974781921,-7124.98573054,0.00032872,2]
[392805329,1761974781941,-1600.0,0.00032873,3]
[392805330,1761974781961,-550.37752579,0.00032874,2]
[392805331,1761974781983,-209.51017245,0.00032884,8]
[392805332,1761974782005,-550.37752579,0.0003289,2]
[392805333,1761974782026,-151.0,0.000329,17]
[392805334,1761974782046,-2168.85475249,0.00032904,2]
[392805335,1761974782070,-230.67,0.00032915,10]
[392805336,1761974782091,-192.23,0.00032915,10]
[392805337,1761974782112,-160.19,0.00032915,10]
[392805338,1761974782138,-151.0,0.00032915,2]
[392805339,1761974782161,-151.0,0.00032915,2]
[392805340,1761974782186,-151.0,0.00032915,2]
[392805341,1761974782208,-151.0,0.00032915,2]
[392805342,1761974782236,-151.0,0.00032915,2]
[392805343,1761974782260,-151.0,0.00032915,2]
[392805344,1761974782285,-151.0,0.00032915,2]
[392805345,1761974782309,-151.0,0.00032915,2]
[392805346,1761974782333,-151.0,0.00032915,2]
[392805347,1761974782355,-151.0,0.00032915,2]
[392805348,1761974782377,-151.0,0.00032915,2]
[392805349,1761974782400,-151.0,0.00032915,2]
[392805350,1761974782425,-151.0,0.00032915,2]
[392805351,1761974782447,-151.0,0.00032915,2]
[392805352,1761974782472,-151.0,0.00032915,2]
[392805353,1761974782496,-151.0,0.00032915,2]
[392805354,1761974782521,-151.0,0.00032915,2]
[392805355,1761974782546,-151.0,0.00032915,2]
[392805356,1761974782571,-151.0,0.00032915,2]
[392805357,1761974782594,-151.0,0.00032915,2]
[392805358,1761974782614,-400.0,0.00032923,3]
[392805359,1761974782635,-500.0,0.00032924,2]
[392805360,1761974782655,-500.0,0.00032924,2]
[392805361,1761974782675,-421.27672764,0.00032924,2]
[392805362,1761974782697,-166.18907502,0.00032924,7]
[392805363,1761974782720,-236.33701789,0.00032924,7]
[392805364,1761974782740,-230.17417484,0.00032924,7]
[392805365,1761974782761,-427.57996225,0.00032924,7]
[392805366,1761974782780,-161.12192238,0.00032924,7]
[392805367,1761974782800,-606.03,0.00032925,3]
[392805368,1761974782820,-303.02,0.00032925,3]
[392805369,1761974782840,-151.51,0.00032925,3]
[392805370,1761974782862,-454.53,0.00032925,3]
[392805371,1761974783206,800.98,0.00032915,10]
[392805373,1761974790851,154.0,0.00033,30]
[392805374,1761974791148,154.0,0.00035,30]
[392805375,1761974796780,-130592.570084,0.00032925,2]
[392805376,1761974796801,-19466.053069,0.00032925,2]
[392805377,1761974796822,-147019.24263437,0.00032935,2]
[392805378,1761974796841,-223.08,0.0003297,14]
[392805379,1761974796862,-2870.0056073,0.00032972,2]
[392805380,1761974796881,-399.65875064,0.00032973,5]
[392805381,1761974796902,-520.15825939,0.00032973,5]
[392805382,1761974796922,-500.0,0.00032978,4]
[392805383,1761974796941,-500.0,0.00032978,4]
[392805384,1761974796960,-501.11849068,0.00032978,4]
[392805385,1761974796979,-1565.45,0.00032978,4]
[392805386,1761974796998,-966.0,0.00032978,4]
[392805387,1761974797027,-200.28381656,0.00032978,4]
[392805388,1761974797052,-628.0,0.00032978,4]
[392805389,1761974797072,-628.0,0.00032978,4]
[392805390,1761974797095,-151.0,0.00032978,4]
[392805391,1761974797115,-168.88304534,0.00032978,4]
[392805392,1761974797137,-202.55468762,0.00032978,4]
[392805393,1761974797158,-4508.69745998,0.00032979,2]
[392805394,1761974797304,-522.5462325,0.0003298,4]
[392805395,1761974797325,-500.0,0.0003298,4]
[392805396,1761974797345,-151.0,0.0003298,2]
[392805397,1761974797366,-151.0,0.0003298,2]
[392805398,1761974797386,-1565.45,0.0003298,4]
[392805399,1761974797408,-130592.570084,0.0003298,2]
[392805400,1761974797428,-19466.053069,0.0003298,2]
[392805401,1761974797449,-165.97763662,0.00032986,4]
[392805402,1761974797470,-1565.45,0.00032986,4]
[392805403,1761974797490,-1565.45,0.00032989,4]
[392805404,1761974797510,-1565.45,0.00032989,4]
[392805405,1761974797530,-1565.45,0.00032989,4]
[392805406,1761974797550,-22196.1913936,0.0003299,2]
[392805407,1761974800381,150.0,0.0002589,2]
[392805408,1761974802206,258.0,0.0003389,120]
[392805409,1761974818446,156.629413,0.0003298,31]
[392805410,1761974831088,-177.0,0.0002789,2]
[392805411,1761974831121,-204.0,0.0002989,2]
[392805412,1761974831152,-231.0,0.0003189,2]
[392805413,1761974831182,-440.11,0.0003298,10]
[392805414,1761974831211,-400.0,0.00032989,2]
[392805415,1761974831347,-7095.79,0.0003299,2]
[392805416,1761974836911,-366.75,0.0003298,10]
[392805417,1761974836947,-9266.51,0.0003299,2]
[392805419,1761974839077,-2496.47041784,0.0003299,2]
[392805420,1761974851326,151.0,0.0003298,31]
[392805421,1761974851616,151.0,0.0003299,31]
[392805422,1761974851905,156.935939,0.0003299,31]
[392805423,1761974858994,151.0,0.00035463,31]
[392805424,1761974859511,151.0,0.00035616,31]
[392805425,1761974860175,206.85828634,0.00038021,30]
[392805426,1761974860224,151.0,0.00035616,31]
[392805430,1761974895916,202.216892,0.00035463,31]
[392805432,1761974899828,345.44731849,0.0002,2]
[392805435,1761974901466,151.0,0.00035463,31]
[392805436,1761974901906,151.0,0.00035616,31]
[392805437,1761974902204,151.0,0.00035616,31]
[392805438,1761974902694,12253.2169441,0.0002,2]
[392805439,1761974904751,250.93423004,0.0002,21]
[392805440,1761974910888,925.80679623,0.0002,120]
[392805441,1761974911208,2959.40688253,0.00038021,120]
[392805442,1761974914244,185.655406,0.00035396,31]
[392805443,1761974914959,510.1045636,0.0002465,2]
[392805444,1761974914991,23386.78512217,0.0002465,2]
[392805445,1761974915081,461.66599219,0.00024,2]
[392805446,1761974916454,151.0,0.00035396,31]
[392805447,1761974916755,153.808167,0.00035549,31]
[392805448,1761974925266,154.0,0.000342,30]
[392805449,1761974931344,151.0,0.00035463,31]
[392805450,1761974934603,151.0,0.00035616,31]
[392805451,1761974934903,151.0,0.00035616,31]
[392805452,1761974937832,326.53672266,0.00033351,120]
[392805453,1761974955337,487.146056,0.00035396,31]
[392805454,1761974955622,487.146056,0.00035549,31]
[392805455,1761974955961,487.146056,0.00035606,31]
[392805456,1761974956300,487.146056,0.00035616,31]
[392805457,1761974956588,487.146056,0.00035616,31]
[392805458,1761974956930,487.146056,0.00035396,31]
[392805459,1761974957404,487.146056,0.00035549,31]
[392805460,1761974957780,487.146056,0.00035606,31]
[392805461,1761974958081,487.146056,0.00035616,31]
[392805462,1761974958409,487.146056,0.00035616,31]
[392805463,1761974958702,487.146056,0.00035396,31]
[392805464,1761974958992,487.146056,0.00035549,31]
[392805465,1761974959096,-152.19681087,0.0002905,2]
[392805466,1761974959120,-9625.37581816,0.0002956,2]
[392805467,1761974959272,487.146056,0.00035606,31]
[392805468,1761974959578,487.146056,0.00035616,31]
[392805469,1761974959859,487.146056,0.00035616,31]
[392805470,1761974960139,487.146056,0.00035396,31]
[392805471,1761974960451,487.146056,0.00035549,31]
[392805472,1761974960765,487.146056,0.00035606,31]
[392805473,1761974961068,487.146056,0.00035616,31]
[392805474,1761974961360,487.146066,0.00035616,31]
[392805475,1761974962098,-3253.53640285,0.0002956,2]
[392805476,1761974962122,-150.0,0.00030637,2]
[392805477,1761974966991,195.238872,0.00035396,31]
[392805478,1761974980485,160.0,0.00035616,30]
[392805479,1761974980569,282.256461,0.00035396,31]
[392805480,1761974980902,282.256461,0.00035549,31]
[392805481,1761974981204,282.256461,0.00035606,31]
[392805482,1761974981634,282.256461,0.00035616,31]
[392805483,1761974982363,282.256461,0.00035616,31]
[392805484,1761974982567,282.256461,0.00035396,31]
[392805485,1761974982938,282.256461,0.00035549,31]
[392805486,1761974983238,282.256461,0.00035606,31]
[392805487,1761974983530,282.256461,0.00035616,31]
[392805488,1761974983828,282.256461,0.00035616,31]
[392805489,1761974984130,282.256461,0.00035396,31]
[392805490,1761974984454,282.256461,0.00035549,31]
[392805491,1761974984738,282.256461,0.00035606,31]
[392805492,1761974985034,282.256461,0.00035616,31]
[392805493,1761974985337,282.256461,0.00035616,31]
[392805494,1761974985634,282.256461,0.00035396,31]
[392805495,1761974985931,282.256461,0.00035549,31]
[392805496,1761974986242,282.256461,0.00035606,31]
[392805497,1761974986587,282.256461,0.00035616,31]
[392805498,1761974986887,282.25645159,0.00035616,31]
[392805499,1761974990642,-551.07513909,0.000328,2]
[392805500,1761974990675,-8897.85972182,0.00032864,2]
[392805501,1761974996511,-10000.01,0.00032864,2]
[392805502,1761975016205,151.0,0.00035377,31]
[392805503,1761975023639,151.0,0.00035596,31]
[392805504,1761975025316,151.0,0.00035377,31]
[392805505,1761975025670,151.0,0.00035596,31]
[392805506,1761975026066,151.0,0.00035616,31]
[392805507,1761975028979,151.0,0.00035377,31]
[392805508,1761975029336,151.0,0.00035596,31]
[392805509,1761975029641,151.0,0.00035616,31]
[392805510,1761975029956,151.0,0.00035616,31]
[392805511,1761975030532,151.0,0.00035377,31]
[392805512,1761975030840,274.869984,0.00035596,31]
[392805532,1761975031870,-308.09929999,0.00032864,2]
[392805533,1761975031881,-802.90624699,0.00032864,2]
[392805534,1761975031891,-200.0,0.00032864,2]
[392805535,1761975031900,-1600.0,0.00032922,3]
[392805536,1761975031909,-1600.0,0.00032923,3]
[392805537,1761975031929,-400.0,0.00032923,3]
[392805538,1761975031938,-400.0,0.00032923,3]
[392805539,1761975031947,-500.0,0.00032924,2]
[392805540,1761975031956,-500.0,0.00032924,2]
[392805541,1761975031966,-500.0,0.00032924,2]
[392805542,1761975031974,-18.63369802,0.00032924,2]
[392805550,1761975033781,151.0,0.00035377,31]
[392805551,1761975034069,151.0,0.00035596,31]
[392805552,1761975034101,153.088738,0.00035377,31]
[392805553,1761975034366,151.0,0.00035616,31]
[392805554,1761975034665,151.0,0.00035616,31]
[392805555,1761975035237,151.0,0.00035377,31]
[392805556,1761975035524,221.684883,0.00035596,31]
[392805565,1761975037645,-12806.51841239,0.00032864,2]
[392805620,1761975040116,-113.15058683,0.00032863,2]
[392805650,1761975041735,-286.84941317,0.00032863,2]
[392805651,1761975041756,-23809.18735161,0.00032864,2]
[392805652,1761975041776,-481.36630198,0.00032924,2]
[392805653,1761975041796,-139.59693324,0.00032924,2]
[392805671,1761975059243,154.0,0.000342,30]
[392805672,1761975070404,403.98447456,0.00035616,30]
[392805673,1761975086705,170.497775,0.00034173,31]
[392805674,1761975092577,151.0,0.00035396,31]
[392805675,1761975092879,151.0,0.00035549,31]
[392805676,1761975093175,219.232836,0.00035606,31]
[392805677,1761975097053,151.0,0.00034173,31]
[392805678,1761975101348,153.741765,0.00035075,31]
[392805679,1761975102623,156.75316744,0.00032989,34]
[392805680,1761975103836,154.014209,0.00034173,30]
[392805681,1761975116603,150.0,0.0002589,2]
[392805682,1761975117061,177.0,0.0002789,2]
[392805683,1761975117455,204.0,0.0002989,2]
[392805684,1761975117903,231.0,0.0003189,2]
[392805685,1761975118297,258.0,0.0003389,120]
[392805686,1761975151129,151.0,0.00034173,31]
[392805687,1761975151453,155.168534,0.00035075,31]
[392805688,1761975158978,151.0,0.00034173,31]
[392805689,1761975159307,151.0,0.00035075,31]
[392805690,1761975159623,165.284887,0.00035596,31]
[392805691,1761975162117,170.836481,0.00034173,31]
[392805692,1761975162507,151.0,0.00034173,31]
[392805693,1761975162780,167.976893,0.00035075,31]
[392805694,1761975192773,154.0,0.000338,30]
[392805695,1761975198572,-272.82706476,0.000324,2]
[392805696,1761975198602,-311.80235972,0.000324,2]
[392805697,1761975198632,-486.70399588,0.000324,2]
[392805698,1761975198659,-3080.5479317,0.00032792,2]
[392805699,1761975198687,-400.0,0.00032897,2]